fUSD/lending_fUSD_20240212
["ID","MTS","AMOUNT","RATE_DAILY","PERIOD"]
[313774965,1707712448544,500.0,0.00022996,2]
[313774966,1707712450362,500.0,0.00022996,2]
[313774967,1707712454304,500.0,0.00022996,2]
[313774968,1707712454637,500.0,0.00022996,2]
[313774969,1707712457000,573.42,0.00022996,2]
[313774970,1707712459159,500.0,0.00022996,2]
[313774971,1707712463662,500.0,0.00022996,2]
[313774972,1707712468049,500.0,0.00022996,2]
[313774973,1707712474294,500.0,0.00022996,2]
[313774974,1707712475475,500.0,0.00022996,2]
[313774975,1707712480615,500.0,0.00022996,2]
[313774976,1707712484742,641.27,0.00022996,2]
[313774977,1707712490930,500.0,0.00022996,2]
[313774978,1707712494540,546.18654216,0.00022996,2]
[313774979,1707712494572,500.0,0.00022996,2]
[313774980,1707712497559,308.40062285,0.00022996,2]
[313774981,1707712499864,332.60045908,0.00022996,2]
[313774982,1707712503537,569.56851916,0.00022996,2]
[313774983,1707712507726,519.78718227,0.00022996,2]
[313774984,1707712508771,9130.7555,0.00022975,2]
[313774985,1707712508989,500.0,0.00022996,2]
[313774986,1707712511493,500.0,0.00022996,2]
[313774987,1707712511818,523.11101799,0.00022996,2]
[313774988,1707712512024,500.0,0.00022996,2]
[313774989,1707712513121,734.57,0.00022996,2]
[313774990,1707712513838,500.0,0.00022996,2]
[313774991,1707712517928,632.17399832,0.00022996,2]
[313774992,1707712520984,33527.26776417,0.00023,2]
[313774993,1707712524204,500.0,0.00022996,2]
[313774994,1707712524663,500.0,0.00022996,2]
[313774995,1707712524994,155.0,0.00023,2]
[313774996,1707712527100,158.50870532,0.00022906,2]
[313774997,1707712530030,558.71411373,0.00022996,2]
[313774998,1707712531310,158.5087053,0.00022963,2]
[313774999,1707712534376,533.80600635,0.00022996,2]
[313775000,1707712535132,540.16437765,0.00022996,2]
[313775001,1707712535459,500.0,0.00022996,2]
[313775002,1707712536130,500.0,0.00022996,2]
[313775003,1707712539236,583.98149448,0.00022996,2]
[313775004,1707712543054,500.0,0.00022996,2]
[313775005,1707712543380,500.0,0.00022996,2]
[313775006,1707712545994,458.2839755,0.00022996,2]
[313775007,1707712548554,500.0,0.00022996,2]
[313775008,1707712549767,530.61255833,0.00022996,2]
[313775009,1707712552426,500.0,0.00022996,2]
[313775010,1707712553417,500.0,0.00022996,2]
[313775011,1707712561053,500.0,0.00022996,2]
[313775012,1707712564371,500.0,0.00022996,2]
[313775013,1707712564798,500.0,0.00022996,2]
[313775014,1707712566874,500.0,0.00022996,2]
[313775015,1707712567985,500.0,0.00022996,2]
[313775016,1707712568067,500.0,0.00022996,2]
[313775017,1707712570203,500.0,0.00022996,2]
[313775018,1707712575832,882.85,0.00022996,2]
[313775019,1707712576034,500.0,0.00022996,2]
[313775020,1707712584727,1250.14,0.00022996,2]
[313775021,1707712586021,500.0,0.00022996,2]
[313775022,1707712587574,500.0,0.00022996,2]
[313775023,1707712590251,500.0,0.00022996,2]
[313775024,1707712592866,500.0,0.00022996,2]
[313775025,1707712603024,500.0,0.00022996,2]
[313775026,1707712618314,500.0,0.00022996,2]
[313775027,1707712618505,490.16034233,0.00022996,2]
[313775028,1707712625546,500.0,0.00022996,2]
[313775029,1707712630240,500.0,0.00022996,2]
[313775030,1707712638561,1169.53,0.00022291,2]
[313775031,1707712648678,747.8,0.00022996,2]
[313775032,1707712649594,617.24,0.00022996,2]
[313775033,1707712663115,500.0,0.00022996,2]
[313775034,1707712672739,524.85,0.00022996,2]
[313775035,1707712681514,556.86259498,0.00022996,2]
[313775036,1707712692199,153.14,0.0002021,2]
[313775037,1707712692612,153.14,0.00022899,2]
[313775038,1707712692661,500.0,0.00022996,2]
[313775039,1707712709117,259.99611821,0.00022996,5]
[313775040,1707712711279,251.07342854,0.00022996,2]
[313775041,1707712716100,556.50027555,0.00022996,2]
[313775042,1707712718207,500.0,0.00022996,2]
[313775043,1707712723133,500.0,0.00022996,2]
[313775044,1707712726082,500.0,0.00022996,2]
[313775045,1707712731386,183.47,0.00022115,10]
[313775046,1707712735750,500.0,0.00022996,2]
[313775047,1707712747636,437.86362944,0.00022996,2]
[313775048,1707712751274,799.6,0.00022996,2]
[313775049,1707712759344,542.94196151,0.00022996,2]
[313775050,1707712759519,524.78,0.00022996,2]
[313775051,1707712762253,500.0,0.00022996,2]
[313775052,1707712767429,500.0,0.00022996,2]
[313775053,1707712776094,500.0,0.00022996,2]
[313775054,1707712781578,616.54,0.00022996,2]
[313775055,1707712790511,500.0,0.00022996,2]
[313775056,1707712792072,647.2,0.00022996,2]
[313775057,1707712796330,500.0,0.00022996,2]
[313775058,1707712801075,500.0,0.00022996,2]
[313775059,1707712813371,500.0,0.00022996,2]
[313775060,1707712813678,500.0,0.00022996,2]
[313775061,1707712826749,500.0,0.00022996,2]
[313775062,1707712828638,500.0,0.00022996,2]
[313775063,1707712831383,20000.0,0.00023,2]
[313775064,1707712834628,704.61,0.00022996,2]
[313775065,1707712836706,500.0,0.00022996,2]
[313775066,1707712845512,500.0,0.00022996,2]
[313775067,1707712848139,500.0,0.00022996,2]
[313775068,1707712849973,500.0,0.00022996,2]
[313775069,1707712855063,500.0,0.00022996,2]
[313775070,1707712861012,500.0,0.00022996,2]
[313775071,1707712862530,1000.0,0.00022974,2]
[313775072,1707712868371,743.7,0.00022996,2]
[313775073,1707712877263,542.00096801,0.00022996,2]
[313775074,1707712891885,178.46,0.00022102,2]
[313775075,1707712894024,500.0,0.00022975,2]
[313775076,1707712906843,685.17,0.00022102,2]
[313775077,1707712963732,158.5087053,0.00022915,2]
[313775078,1707712996339,160.98826033,0.00022975,2]
[313775079,1707713000985,1150.64873734,0.00022975,2]
[313775080,1707713045127,339.21,0.0002211,2]
[313775081,1707713068088,2530.19705251,0.0002,2]
[313775082,1707713102788,150.0,0.00022986,2]
[313775083,1707713108330,1000.0,0.00022974,2]
[313775084,1707713188492,153.14,0.00020201,2]
[313775085,1707713211168,5000.0,0.00022975,2]
[313775086,1707713242517,200.0,0.000226,8]
[313775087,1707713244594,500.0,0.000227,8]
[313775088,1707713246681,800.0,0.000228,8]
[313775089,1707713248792,1000.0,0.000229,8]
[313775092,1707713293104,151.0212,0.00022998,3]
[313775093,1707713313052,1500.0,0.00023,7]
[313775097,1707713338353,1388.0,0.00023,7]
[313775098,1707713342446,185.84276103,0.00022975,2]
[313775103,1707713350193,1000.0,0.00022974,2]
[313775104,1707713355481,5000.0,0.00022975,2]
[313775108,1707713396136,160.98826032,0.00022975,2]
[313775116,1707713417540,158.5087053,0.00022915,2]
[313775121,1707713431616,-366.06042699,0.00023013,2]
[313775122,1707713431627,-500.0,0.00023014,2]
[313775123,1707713431637,-18964.44407422,0.00023014,2]
[313775124,1707713431650,-5510.34702963,0.00023014,2]
[313775125,1707713431660,-9583.49990672,0.00023015,2]
[313775126,1707713431670,-188.99370364,0.00023015,2]
[313775127,1707713431680,-261.97827691,0.00023016,2]
[313775128,1707713431690,-2399.0,0.00023017,2]
[313775129,1707713431699,-1042.609,0.00023017,2]
[313775133,1707713431944,-381.095,0.00023017,2]
[313775134,1707713431954,-1302.36,0.00023017,2]
[313775135,1707713431967,-567.686,0.00023017,2]
[313775136,1707713431976,-1256.743,0.00023017,2]
[313775137,1707713431986,-216.461,0.00023017,2]
[313775138,1707713431995,-598.0,0.00023017,2]
[313775139,1707713432005,-1008.352,0.00023017,2]
[313775140,1707713432014,-238.465,0.00023017,2]
[313775141,1707713432023,-1954.493,0.00023017,2]
[313775142,1707713432032,-430.707,0.00023017,2]
[313775143,1707713432041,-252.714,0.00023017,2]
[313775144,1707713432051,-321.688,0.00023017,2]
[313775145,1707713432060,-939.502,0.00023017,2]
[313775146,1707713432069,-1138.0,0.00023017,2]
[313775147,1707713432078,-343.736,0.00023017,2]
[313775148,1707713432088,-7409.0,0.00023017,2]
[313775149,1707713432097,-2924.0,0.00023017,2]
[313775150,1707713432106,-28022.54690749,0.00023017,2]
[313775151,1707713432655,-9392.55509251,0.00023017,2]
[313775152,1707713432664,-4206.0,0.00023017,2]
[313775153,1707713432673,-19827.0,0.00023017,2]
[313775154,1707713432682,-1173.987,0.00023017,2]
[313775155,1707713432691,-2287.0,0.00023017,2]
[313775156,1707713432700,-151.308,0.00023017,2]
[313775157,1707713432710,-292.268,0.00023017,2]
[313775158,1707713432719,-185.84276102,0.00023024,2]
[313775159,1707713432728,-157.4326998,0.00023061,2]
[313775160,1707713432738,-490.44530147,0.00023065,2]
[313775161,1707713432747,-387.80808766,0.00023072,2]
[313775162,1707713432757,-1261.71332019,0.00023073,3]
[313775163,1707713432766,-868.03201719,0.00023073,3]
[313775164,1707713432775,-204.43259677,0.00023073,2]
[313775165,1707713432785,-500.0,0.00023073,2]
[313775166,1707713432795,-500.0,0.00023073,2]
[313775167,1707713432804,-500.0,0.00023073,2]
[313775168,1707713432813,-500.0,0.00023073,2]
[313775169,1707713432823,-946.24,0.00023073,2]
[313775170,1707713432832,-500.0,0.00023073,2]
[313775171,1707713432841,-500.0,0.00023073,2]
[313775172,1707713432851,-500.0,0.00023073,2]
[313775173,1707713432860,-500.0,0.00023073,2]
[313775174,1707713432869,-500.0,0.00023073,2]
[313775175,1707713432878,-500.0,0.00023073,2]
[313775176,1707713432887,-500.0,0.00023073,2]
[313775177,1707713432897,-227.05643407,0.00023073,2]
[313775178,1707713432907,-502.43,0.00023073,2]
[313775179,1707713432916,-532.75,0.00023073,2]
[313775180,1707713432925,-500.0,0.00023073,2]
[313775181,1707713432937,-536.73767887,0.00023073,2]
[313775182,1707713432976,-518.48,0.00023073,2]
[313775183,1707713432985,-500.0,0.00023073,2]
[313775184,1707713432994,-500.0,0.00023073,2]
[313775185,1707713433004,-226.78603424,0.00023073,2]
[313775186,1707713433014,-538.43,0.00023073,2]
[313775187,1707713433023,-569.49,0.00023073,2]
[313775188,1707713433032,-500.0,0.00023073,2]
[313775189,1707713433042,-500.0,0.00023073,2]
[313775190,1707713433051,-539.9898029,0.00023073,2]
[313775191,1707713433060,-241.27563124,0.00023073,2]
[313775192,1707713433070,-500.0,0.00023073,2]
[313775193,1707713433079,-500.0,0.00023073,2]
[313775194,1707713433088,-500.0,0.00023073,2]
[313775195,1707713433097,-516.19953153,0.00023073,2]
[313775196,1707713433106,-793.16,0.00023073,2]
[313775197,1707713433116,-500.0,0.00023073,2]
[313775198,1707713433125,-510.80052128,0.00023073,2]
[313775199,1707713433134,-604.59,0.00023073,2]
[313775200,1707713433143,-803.13,0.00023073,2]
[313775201,1707713433152,-1511.45,0.00023073,2]
[313775202,1707713433162,-500.0,0.00023073,2]
[313775203,1707713433172,-508.15379116,0.00023073,2]
[313775204,1707713433181,-625.16,0.00023073,2]
[313775205,1707713433191,-651.13,0.00023073,2]
[313775206,1707713433201,-613.15,0.00023073,2]
[313775207,1707713433211,-500.0,0.00023073,2]
[313775208,1707713433221,-500.0,0.00023073,2]
[313775209,1707713433230,-500.0,0.00023073,2]
[313775210,1707713433239,-500.0,0.00023073,2]
[313775211,1707713433249,-500.0,0.00023073,2]
[313775212,1707713433258,-500.0,0.00023073,2]
[313775213,1707713433267,-500.0,0.00023073,2]
[313775214,1707713433277,-511.02762123,0.00023073,2]
[313775215,1707713433286,-2678.63,0.00023073,2]
[313775216,1707713433295,-500.0,0.00023073,2]
[313775217,1707713433303,-2244.09,0.00023073,2]
[313775218,1707713433313,-518.49778796,0.00023073,2]
[313775219,1707713433326,-500.0,0.00023073,2]
[313775220,1707713433335,-500.0,0.00023073,2]
[313775221,1707713433345,-514.50301059,0.00023073,2]
[313775222,1707713433354,-500.0,0.00023073,2]
[313775223,1707713433364,-500.0,0.00023073,2]
[313775224,1707713433373,-8839.73,0.00023073,2]
[313775225,1707713433383,-500.0,0.00023073,2]
[313775226,1707713433392,-514.68886872,0.00023073,2]
[313775227,1707713433403,-500.0,0.00023073,2]
[313775228,1707713433413,-500.0,0.00023073,2]
[313775229,1707713433422,-433.89190625,0.00023073,2]
[313775230,1707713433431,-7232.49,0.00023073,2]
[313775231,1707713433440,-508.72635369,0.00023073,2]
[313775232,1707713433450,-670.24,0.00023073,2]
[313775233,1707713433460,-500.0,0.00023073,2]
[313775234,1707713433469,-500.0,0.00023073,2]
[313775235,1707713433478,-500.0,0.00023073,2]
[313775236,1707713433488,-500.0,0.00023073,2]
[313775237,1707713433497,-500.0,0.00023073,2]
[313775238,1707713433506,-2444.36,0.00023073,2]
[313775239,1707713433516,-535.85,0.00023073,2]
[313775240,1707713433527,-508.21468496,0.00023073,2]
[313775241,1707713433536,-505.36435037,0.00023073,2]
[313775242,1707713433545,-500.0,0.00023073,2]
[313775243,1707713433555,-500.0,0.00023073,2]
[313775244,1707713433564,-500.0,0.00023073,2]
[313775245,1707713433574,-500.0,0.00023073,2]
[313775246,1707713433584,-500.0,0.00023073,2]
[313775247,1707713433593,-500.0,0.00023073,2]
[313775248,1707713433602,-500.0,0.00023073,2]
[313775249,1707713433611,-206.11,0.00023073,2]
[313775250,1707713433620,-500.0,0.00023073,2]
[313775251,1707713433630,-562.37,0.00023073,2]
[313775252,1707713433639,-500.0,0.00023073,2]
[313775253,1707713433648,-500.0,0.00023073,2]
[313775254,1707713433658,-535.79,0.00023073,2]
[313775255,1707713433667,-717.33,0.00023073,2]
[313775256,1707713433676,-511.15766038,0.00023073,2]
[313775257,1707713433685,-2198.24,0.00023073,2]
[313775258,1707713433694,-508.98643749,0.00023073,2]
[313775259,1707713433704,-500.0,0.00023073,2]
[313775260,1707713433714,-500.0,0.00023073,2]
[313775261,1707713433723,-500.0,0.00023073,2]
[313775262,1707713433732,-538.36855682,0.00023073,2]
[313775263,1707713433742,-500.0,0.00023073,2]
[313775264,1707713433751,-992.98,0.00023073,2]
[313775265,1707713433760,-500.0,0.00023073,2]
[313775266,1707713433769,-518.29157558,0.00023073,2]
[313775267,1707713433779,-1058.06,0.00023073,2]
[313775268,1707713433788,-528.9841545,0.00023073,2]
[313775269,1707713433797,-500.0,0.00023073,2]
[313775270,1707713433807,-504.50346813,0.00023073,2]
[313775271,1707713433816,-500.0,0.00023073,2]
[313775272,1707713433826,-500.0,0.00023073,2]
[313775273,1707713433835,-586.35959884,0.00023073,2]
[313775274,1707713433844,-500.0,0.00023073,2]
[313775275,1707713433853,-650.46,0.00023073,2]
[313775276,1707713433862,-500.0,0.00023073,2]
[313775277,1707713433872,-500.0,0.00023073,2]
[313775278,1707713433881,-850.51,0.00023073,2]
[313775279,1707713433891,-500.0,0.00023073,2]
[313775280,1707713433900,-500.0,0.00023073,2]
[313775281,1707713433909,-500.0,0.00023073,2]
[313775282,1707713433918,-789.25,0.00023073,2]
[313775283,1707713433927,-500.0,0.00023073,2]
[313775284,1707713433936,-605.06,0.00023073,2]
[313775285,1707713433945,-9167.8,0.00023073,2]
[313775286,1707713433954,-500.0,0.00023073,2]
[313775287,1707713433965,-500.0,0.00023073,2]
[313775288,1707713433974,-980.84,0.00023073,2]
[313775289,1707713433983,-862.43,0.00023073,2]
[313775290,1707713433992,-500.0,0.00023073,2]
[313775291,1707713434002,-542.08,0.00023073,2]
[313775292,1707713434011,-559.46,0.00023073,2]
[313775293,1707713434021,-7505.78,0.00023073,2]
[313775294,1707713434031,-3203.99,0.00023073,2]
[313775295,1707713434044,-605.35,0.00023073,2]
[313775296,1707713434054,-500.0,0.00023073,2]
[313775297,1707713434063,-569.88,0.00023073,2]
[313775298,1707713434073,-518.3,0.00023073,2]
[313775299,1707713434082,-594.46303776,0.00023073,2]
[313775300,1707713434092,-500.0,0.00023073,2]
[313775301,1707713434101,-500.0,0.00023073,2]
[313775302,1707713434111,-633.81,0.00023073,2]
[313775303,1707713434120,-3108.3,0.00023073,2]
[313775304,1707713434129,-510.11,0.00023073,2]
[313775305,1707713434138,-500.0,0.00023073,2]
[313775306,1707713434148,-1636.13648797,0.00023073,2]
[313775307,1707713434166,-484.10191491,0.00023073,2]
[313775308,1707713434190,-739.51159712,0.00023073,2]
[313775309,1707713434200,-389.73375582,0.00023073,2]
[313775323,1707713437528,-211.685,0.00023017,2]
[313775325,1707713437540,-302.47233265,0.00023065,3]
[313775326,1707713437551,-249.18438271,0.00023073,3]
[313775327,1707713437561,-1.24189271,0.00023073,3]
[313775328,1707713437587,-276.57940112,0.00023073,3]
[313775329,1707713437597,-676.59561482,0.00023073,2]
[313775330,1707713437609,-300.0,0.00023073,2]
[313775331,1707713437622,-1063.47846406,0.00023073,2]
[313775332,1707713437635,-1406.1221653,0.00023073,2]
[313775333,1707713437645,-500.0,0.00023073,2]
[313775334,1707713437654,-514.11383999,0.00023073,2]
[313775335,1707713437664,-500.0,0.00023073,2]
[313775336,1707713437674,-500.0,0.00023073,2]
[313775337,1707713437684,-500.0,0.00023073,2]
[313775338,1707713437694,-185.84276102,0.00023073,2]
[313775339,1707713437704,-500.0,0.00023073,2]
[313775340,1707713437717,-1048.46,0.00023073,2]
[313775341,1707713437726,-2075.79,0.00023073,2]
[313775342,1707713437736,-553.40715551,0.00023073,2]
[313775343,1707713437750,-508.36998304,0.00023073,2]
[313775344,1707713437760,-500.0,0.00023073,2]
[313775345,1707713437769,-500.0,0.00023073,2]
[313775346,1707713437779,-151.0212,0.00023073,3]
[313775347,1707713437789,-836.95,0.00023073,2]
[313775348,1707713437799,-151.0212,0.00023073,3]
[313775349,1707713437809,-151.0212,0.00023073,3]
[313775350,1707713437819,-151.0212,0.00023073,3]
[313775351,1707713437828,-151.0212,0.00023073,3]
[313775352,1707713437838,-882.53,0.00023073,2]
[313775353,1707713437848,-151.0212,0.00023073,3]
[313775354,1707713437858,-500.0,0.00023073,2]
[313775355,1707713437868,-500.0,0.00023073,2]
[313775356,1707713437878,-151.0212,0.00023073,3]
[313775357,1707713437888,-1838.91,0.00023073,2]
[313775358,1707713437897,-1437.58,0.00023073,2]
[313775359,1707713437907,-500.0,0.00023073,2]
[313775360,1707713437917,-665.84,0.00023073,2]
[313775361,1707713437926,-504.74340815,0.00023073,2]
[313775362,1707713437936,-500.0,0.00023073,2]
[313775363,1707713437946,-2698.11,0.00023073,2]
[313775364,1707713437956,-761.33,0.00023073,2]
[313775365,1707713437967,-500.0,0.00023073,2]
[313775366,1707713437977,-500.0,0.00023073,2]
[313775367,1707713437987,-570.21,0.00023073,2]
[313775368,1707713437997,-530.68,0.00023073,2]
[313775370,1707713438007,-500.0,0.00023073,2]
[313775372,1707713438017,-151.0212,0.00023073,3]
[313775373,1707713438030,-151.0212,0.00023073,3]
[313775374,1707713438040,-151.0212,0.00023073,3]
[313775375,1707713438050,-500.0,0.00023073,2]
[313775376,1707713438060,-151.0212,0.00023073,3]
[313775378,1707713438070,-151.0212,0.00023073,3]
[313775380,1707713438080,-151.0212,0.00023073,3]
[313775383,1707713438090,-2278.04,0.00023073,2]
[313775385,1707713438099,-151.0212,0.00023073,3]
[313775386,1707713438109,-151.0212,0.00023073,3]
[313775387,1707713438119,-412.16667924,0.00023073,2]
[313775388,1707713438143,-87.83332076,0.00023073,2]
[313775389,1707713438153,-500.0,0.00023073,2]
[313775390,1707713438163,-7117.17,0.00023073,2]
[313775391,1707713438173,-500.0,0.00023073,2]
[313775392,1707713438182,-500.0,0.00023073,2]
[313775393,1707713438192,-500.0,0.00023073,2]
[313775394,1707713438202,-3175.5,0.00023073,2]
[313775395,1707713438211,-500.0,0.00023073,2]
[313775396,1707713438222,-500.0,0.00023073,2]
[313775397,1707713438232,-815.42,0.00023073,2]
[313775398,1707713438242,-500.0,0.00023073,2]
[313775399,1707713438251,-500.0,0.00023073,2]
[313775400,1707713438261,-500.0,0.00023073,2]
[313775401,1707713438271,-629.41,0.00023073,2]
[313775402,1707713438280,-638.05,0.00023073,2]
[313775403,1707713438289,-500.0,0.00023073,2]
[313775404,1707713438299,-850.01,0.00023073,2]
[313775405,1707713438308,-500.0,0.00023073,2]
[313775406,1707713438318,-500.0,0.00023073,2]
[313775407,1707713438331,-500.0,0.00023073,2]
[313775408,1707713438340,-2465.67,0.00023073,2]
[313775409,1707713438349,-628.56,0.00023073,2]
[313775410,1707713438359,-500.0,0.00023073,2]
[313775411,1707713438370,-500.0,0.00023073,2]
[313775412,1707713438379,-500.0,0.00023073,2]
[313775413,1707713438389,-591.55,0.00023073,2]
[313775414,1707713438399,-641.41636645,0.00023073,2]
[313775415,1707713438468,-87.05363355,0.00023073,2]
[313775416,1707713438478,-365.58636645,0.00023073,2]
[313775417,1707713438491,-191.41363355,0.00023073,2]
[313775418,1707713438501,-500.0,0.00023073,2]
[313775419,1707713438511,-500.0,0.00023073,2]
[313775420,1707713438521,-151.0212,0.00023073,3]
[313775421,1707713438532,-151.0212,0.00023073,3]
[313775422,1707713438542,-3028.28,0.00023073,2]
[313775423,1707713438552,-151.0212,0.00023073,3]
[313775424,1707713438562,-151.0212,0.00023073,3]
[313775425,1707713438572,-449.59503234,0.00023073,2]
[313775426,1707713438584,-50.40496766,0.00023073,2]
[313775427,1707713438594,-500.0,0.00023073,2]
[313775428,1707713438603,-151.0212,0.00023073,3]
[313775429,1707713438612,-151.0212,0.00023073,3]
[313775430,1707713438622,-151.0212,0.00023073,3]
[313775431,1707713438632,-500.0,0.00023073,2]
[313775432,1707713438641,-508.58028326,0.00023073,2]
[313775433,1707713438651,-500.0,0.00023073,2]
[313775434,1707713438660,-520.3897686,0.00023073,2]
[313775435,1707713438670,-2370.13,0.00023073,2]
[313775436,1707713438680,-500.0,0.00023073,2]
[313775437,1707713438690,-3955.57,0.00023073,2]
[313775438,1707713438699,-4114.99,0.00023073,2]
[313775439,1707713438709,-510.61472296,0.00023073,2]
[313775440,1707713438720,-509.52046427,0.00023073,2]
[313775441,1707713438730,-2717.29,0.00023073,2]
[313775442,1707713438739,-500.0,0.00023073,2]
[313775443,1707713438749,-643.65,0.00023073,2]
[313775444,1707713438758,-500.0,0.00023073,2]
[313775445,1707713438768,-500.0,0.00023073,2]
[313775446,1707713438778,-779.67,0.00023073,2]
[313775447,1707713438787,-500.0,0.00023073,2]
[313775448,1707713438797,-174.6511332,0.00023073,2]
[313775449,1707713438893,-325.3488668,0.00023073,2]
[313775450,1707713438903,-1164.69,0.00023073,2]
[313775451,1707713438913,-119.51916142,0.00023073,2]
[313775452,1707713438926,-1499.89083858,0.00023073,2]
[313775453,1707713438936,-150.0,0.00023073,2]
[313775454,1707713438946,-500.0,0.00023073,2]
[313775455,1707713438956,-312.70175773,0.00023074,2]
[313775456,1707713438967,-171.33520258,0.00023074,2]
[313775457,1707713438976,-500.0,0.00023074,2]
[313775458,1707713438985,-500.0,0.00023074,2]
[313775459,1707713438994,-545.76,0.00023074,2]
[313775460,1707713439004,-970.83,0.00023074,2]
[313775461,1707713439014,-500.0,0.00023074,2]
[313775462,1707713439024,-500.0,0.00023074,2]
[313775463,1707713439034,-500.0,0.00023074,2]
[313775464,1707713439044,-451.0749817,0.00023074,2]
[313775465,1707713439058,-40.46951296,0.00023074,2]
[313775466,1707713439067,-500.0,0.00023074,2]
[313775467,1707713439077,-431.46348704,0.00023074,2]
[313775468,1707713439089,-82.22615278,0.00023074,2]
[313775469,1707713439100,-225.66384722,0.00023074,2]
[313775470,1707713439112,-421.78588728,0.00023074,2]
[313775471,1707713439124,-433.8102655,0.00023074,2]
[313775472,1707713439133,-507.29103444,0.00023074,2]
[313775473,1707713439144,-914.26,0.00023074,2]
[313775474,1707713439154,-925.52,0.00023074,2]
[313775475,1707713439164,-730.81,0.00023074,2]
[313775476,1707713439174,-624.16,0.00023074,2]
[313775477,1707713439183,-500.0,0.00023074,2]
[313775478,1707713439193,-1033.9,0.00023074,2]
[313775479,1707713439203,-766.14,0.00023074,2]
[313775480,1707713439213,-390.47708835,0.00023074,2]
[313775481,1707713439223,-500.0,0.00023074,2]
[313775482,1707713439233,-524.08030888,0.00023074,2]
[313775483,1707713439242,-1110.22,0.00023074,2]
[313775484,1707713439251,-916.58,0.00023074,2]
[313775485,1707713439260,-855.95,0.00023074,2]
[313775486,1707713439270,-1490.06,0.00023074,2]
[313775487,1707713439279,-31.70953806,0.00023074,2]
[313775488,1707713439292,-189.09072254,0.00023074,2]
[313775489,1707713439302,-1321.39,0.00023074,2]
[313775490,1707713439311,-1338.12,0.00023074,2]
[313775491,1707713439321,-145.96025444,0.00023074,2]
[313775492,1707713439335,-761.9585976,0.00023074,2]
[313775493,1707713439347,-30.23114796,0.00023074,2]
[313775494,1707713439357,-500.0,0.00023074,2]
[313775495,1707713439366,-134.48440664,0.00023074,2]
[313775496,1707713439397,-365.51559336,0.00023074,2]
[313775497,1707713439408,-694.47422775,0.00023074,2]
[313775498,1707713439431,-314.52577225,0.00023074,2]
[313775499,1707713439440,-500.0,0.00023074,2]
[313775500,1707713439450,-671.23,0.00023074,2]
[313775501,1707713439459,-952.69,0.00023074,2]
[313775502,1707713439469,-508.12020611,0.00023074,2]
[313775503,1707713439479,-500.0,0.00023074,7]
[313775504,1707713439488,-511.06874968,0.00023074,2]
[313775505,1707713439498,-500.0,0.00023074,2]
[313775506,1707713439507,-614.71,0.00023074,2]
[313775507,1707713439517,-500.0,0.00023074,2]
[313775508,1707713439526,-861.92,0.00023074,2]
[313775509,1707713439535,-1116.02,0.00023074,2]
[313775510,1707713439548,-500.0,0.00023074,2]
[313775511,1707713439558,-1132.38,0.00023074,2]